bitfinex/quotes_SOLUSD_20240607
["timestamp","ask_amount","ask_price","bid_price","bid_amount"]
[1717784542086,3.12397864,160.2,159.98,20.0]
[1717784542260,3.12397864,160.2,159.94,120.0]
[1717784542581,3.12397864,160.2,159.95,140.0]
[1717784542778,3.12397864,160.2,159.92,20.0]
[1717784542779,3.12397864,160.2,159.96,20.0]
[1717784542990,3.12397864,160.2,159.92,20.0]
[1717784543169,4.61343764,160.19,159.9,120.0]
[1717784543369,3.12428692,160.18,159.92,120.0]
[1717784543555,3.12362924,160.17,159.93,120.0]
[1717784543885,9.27099982,160.17,159.92,120.0]
[1717784544191,9.27099982,160.17,159.96,120.0]
[1717784544389,6.67079968,160.24,160.01,90.0]
[1717784544577,3.12341532,160.23,160.01,90.0]
[1717784544762,15.52674114,160.23,160.02,20.0]
[1717784544961,12.40332582,160.22,159.91,120.0]
[1717784545164,3.12426298,160.21,159.9,10.0]
[1717784545401,3.12426298,160.21,159.95,120.0]
[1717784545402,15.52761274,160.2,159.95,120.0]
[1717784545562,3.12428692,160.2,159.94,120.0]
[1717784545886,3.12428692,160.2,160.03,120.0]
[1717784546066,34.03,160.31,160.03,120.0]
[1717784546067,3.12231181,160.23,160.03,120.0]
[1717784546267,3.12201707,160.22,160.04,20.0]
[1717784546591,3.12201707,160.22,159.97,120.0]
[1717784546801,3.12274798,160.3,160.02,120.0]
[1717784547001,3.12295559,160.29,160.02,120.0]
[1717784547164,9.34045154,160.29,160.0,126.312]
[1717784547374,9.34045154,160.29,160.02,120.0]
[1717784547690,6.21749595,160.28,160.0,126.312]
[1717784547866,3.12259863,160.27,160.0,6.312]
[1717784548067,9.34127125,160.26,160.0,6.312]
[1717784548483,9.34127125,160.26,160.06,120.0]
[1717784548673,3.12139185,160.31,160.05,120.0]
[1717784548864,3.12181005,160.3,160.09,120.0]
[1717784549079,3.12181005,160.3,160.06,6.01810807]
[1717784549080,3.12099863,160.29,160.11,120.0]
[1717784549263,3.12099863,160.29,160.07,120.0]
[1717784549462,3.12099863,160.29,160.09,120.0]
[1717784549792,3.12099863,160.29,160.02,6.312]
[1717784550090,3.12099863,160.29,160.0,6.312]
[1717784550265,3.12099863,160.29,160.04,6.312]
[1717784550584,5.43417373,160.28,160.04,6.312]
[1717784550785,3.12319973,160.27,160.04,6.312]
[1717784550998,8.55746222,160.26,160.04,6.312]
[1717784551283,3.12249537,160.26,160.04,126.312]
[1717784551487,8.55596867,160.33,160.06,120.0]
[1717784551786,3.1215586,160.32,160.03,6.312]
[1717784551965,8.55573233,160.32,160.03,6.312]
[1717784552167,43.9905745,160.31,160.04,6.312]
[1717784552394,3.12242991,160.3,160.04,6.312]
[1717784552604,8.55698087,160.29,160.04,6.312]
[1717784553062,3.12280714,160.29,160.04,6.312]
[1717784553374,3.12280714,160.29,160.07,120.0]
[1717784553583,7.51677105,160.34,160.07,120.0]
[1717784553798,7.51677105,160.34,160.02,6.312]
[1717784553799,3.12141132,160.33,160.08,5.88538529]
[1717784553969,2.81775,160.32,160.06,120.0]
[1717784554279,2.81775,160.32,160.07,1.73243939]
[1717784554485,2.81775,160.32,160.04,6.312]
[1717784555088,9.9605745,160.31,160.04,126.312]
[1717784555323,2.08259732,160.34,160.04,126.312]
[1717784555324,3.12209572,160.3,160.04,126.312]
[1717784555495,3.12176295,160.29,160.06,120.0]
[1717784556173,3.12176295,160.29,160.07,20.0]
[1717784556370,3.12071423,160.33,160.14,120.0]
[1717784556577,5.20270682,160.34,160.16,120.0]
[1717784556785,5.20270682,160.34,160.17,25.88538529]
[1717784556968,2.08259732,160.34,160.17,140.0]
[1717784557369,2.08259732,160.34,160.17,20.0]
[1717784557596,2.08259732,160.34,160.24,90.0]
[1717784557782,2.08259732,160.34,160.17,170.0]
[1717784557783,2.70523952,160.34,160.17,50.0]
[1717784557982,2.70523952,160.34,160.14,120.0]
[1717784557983,3.11983843,160.33,160.14,120.0]
[1717784558195,3.12078274,160.32,160.11,2.88686672]
[1717784558577,3.12078274,160.32,160.13,6.312]
[1717784559411,3.12080802,160.32,160.13,126.312]
[1717784559596,3.12080802,160.32,160.14,6.312]
[1717784559798,2.70523952,160.34,160.17,6.312]
[1717784560011,2.70523952,160.34,160.07,31.78686672]
[1717784560012,2.70523952,160.34,160.21,120.0]
[1717784560252,2.70523952,160.34,160.19,6.312]
[1717784560419,2.70523952,160.34,160.2,140.0]
[1717784560813,0.6226422,160.34,160.24,90.0]
[1717784561323,0.6226422,160.34,160.11,6.312]
[1717784561701,3.12049377,160.33,160.11,6.312]
[1717784562014,3.12044093,160.32,160.11,6.312]
[1717784562212,3.12044093,160.32,160.09,6.312]
[1717784563407,3.12044093,160.32,160.08,6.312]
[1717784563696,10.53044215,160.31,160.08,6.312]
[1717784563890,34.03,160.29,160.08,6.312]
[1717784564203,23.12271206,160.28,160.09,96.312]
[1717784564458,9.9605745,160.27,160.09,6.312]
[1717784564597,22.90484,160.26,160.09,6.312]
[1717784564799,12.8654145,160.26,160.09,6.312]
[1717784565120,29.9605745,160.28,160.09,6.312]
[1717784565340,149.9605745,160.28,160.1,6.312]
[1717784565516,12.22292907,160.27,160.1,6.312]
[1717784565713,31.65306142,160.26,160.0,306.312]
[1717784565911,43.34484469,160.26,160.0,306.312]
[1717784566230,5.13139387,160.25,160.0,306.312]
[1717784566547,26.82570789,160.24,160.0,306.312]
[1717784566736,1.69248692,160.23,160.0,306.312]
[1717784566919,1.69248692,160.23,160.0,426.312]
[1717784567118,1.69248692,160.23,160.04,120.0]
[1717784567325,1.69248692,160.27,160.13,90.0]
[1717784567718,6.5585623,160.31,160.14,37.71]
[1717784568015,0.6226422,160.34,160.13,120.0]
[1717784568016,8.87369142,160.34,160.13,120.0]
[1717784568215,6.5585623,160.33,160.05,2.88686672]
[1717784568419,1.69248692,160.32,160.05,20.0]
[1717784568639,1.69248692,160.32,160.08,120.0]
[1717784568925,1.69248692,160.32,160.11,120.0]
[1717784569110,2.08259732,160.31,160.14,120.0]
[1717784569429,1.69248692,160.3,160.15,20.0]
[1717784569685,2.08259732,160.31,160.15,20.0]
[1717784570008,2.08259732,160.31,160.17,120.0]
[1717784570210,2.08259732,160.31,160.18,20.0]
[1717784570731,2.08259732,160.31,160.17,120.0]
[1717784570913,2.08259732,160.31,160.25,90.0]
[1717784571114,0.6226422,160.34,160.25,90.0]
[1717784571327,0.6226422,160.34,160.25,6.312]
[1717784572205,0.6226422,160.34,160.15,6.312]
[1717784572206,2.08259732,160.33,160.15,6.312]
[1717784572542,1.69248692,160.32,160.08,2.88686672]
[1717784572744,2.31512912,160.32,160.09,6.312]
[1717784573737,2.31512912,160.32,160.1,6.312]
[1717784573941,1.69248692,160.31,160.12,6.312]
[1717784574453,1.69248692,160.31,160.19,90.0]
[1717784574638,1.69248692,160.31,160.12,6.312]
[1717784574835,1.69248692,160.31,160.1,6.312]
[1717784575852,1.69248692,160.31,160.12,6.312]
[1717784576114,1.69248692,160.3,160.12,6.312]
[1717784576353,131.65306142,160.29,160.12,6.312]
[1717784576530,9.9605745,160.27,160.06,6.5001039]
[1717784576859,40.27186248,160.26,160.06,6.5001039]
[1717784577731,1.69248692,160.25,160.07,90.0]
[1717784577951,7.2085623,160.24,160.07,90.0]
[1717784578254,21.69248692,160.23,160.06,6.5001039]
[1717784578561,12.61093332,160.22,160.06,6.5001039]
[1717784578735,21.69248692,160.21,160.06,6.5001039]
[1717784578937,8.61216033,160.2,160.06,6.5001039]
[1717784579255,20.0,160.19,160.06,6.5001039]
[1717784579457,1.69248692,160.18,160.06,6.5001039]
[1717784579636,1.69248692,160.17,160.06,6.5001039]
[1717784580550,6.91967341,160.16,160.06,6.5001039]
[1717784580732,8.61216033,160.16,160.06,6.5001039]
[1717784581056,1.69248692,160.23,160.06,6.5001039]
[1717784581244,1.69248692,160.22,160.09,90.0]
[1717784581853,9.9605745,160.41,160.12,120.0]
[1717784582057,2.31512912,160.32,160.1,20.0]
[1717784582272,9.9605745,160.31,160.06,12.8121039]
[1717784582549,9.9605745,160.29,160.01,6.312]
[1717784582753,9.9605745,160.27,160.06,6.51431265]
[1717784582958,8.61216033,160.28,160.01,6.312]
[1717784582959,1.69248692,160.26,160.01,6.312]
[1717784583371,1.69248692,160.26,160.06,6.51118911]
[1717784583658,9.9605745,160.17,160.01,6.312]
[1717784583864,20.0,160.27,160.06,6.51110865]
[1717784583865,21.69248692,160.16,160.06,6.51110865]
[1717784584163,1.69248692,160.15,160.0,300.0]
[1717784584440,120.0,160.11,160.06,6.51371052]
[1717784584546,34.03,160.17,160.06,6.51371052]
[1717784584547,33.26093332,160.1,160.06,6.51371052]
[1717784584864,40.72952301,160.1,160.0,300.0]
[1717784585063,13.1598496,160.1,160.04,6.5087299]
[1717784585247,20.0,160.09,160.0,300.0]
[1717784585570,21.03008692,160.23,160.04,6.50978311]
[1717784585866,2.08259732,160.33,160.04,6.50978311]
[1717784585867,1.65272912,160.32,160.12,120.0]
[1717784586033,14.51829199,160.3,160.0,300.0]
[1717784586239,1.03008692,160.29,160.05,120.0]
[1717784586439,8.59976033,160.29,160.08,120.0]
[1717784586667,8.59976033,160.29,160.03,120.0]
[1717784586668,1.03008692,160.29,160.03,120.0]
[1717784586961,1.03008692,160.29,160.04,6.51405786]
[1717784587265,0.6226422,160.32,160.11,120.0]
[1717784587450,0.6226422,160.32,160.12,140.0]
[1717784587646,1.65272912,160.32,160.1,120.0]
[1717784587846,0.6226422,160.32,160.13,110.0]
[1717784588049,0.6226422,160.32,160.13,230.0]
[1717784588350,0.6226422,160.32,160.16,120.0]
[1717784588556,0.6226422,160.32,160.17,120.0]
[1717784588787,0.6226422,160.32,160.25,120.0]
[1717784588954,0.6226422,160.32,160.28,120.0]
[1717784589148,0.6226422,160.32,160.3,120.0]
[1717784589346,0.6226422,160.32,160.22,18.9]
[1717784589347,0.6226422,160.32,160.22,6.0562521]
[1717784589666,0.6226422,160.32,160.23,140.0]
[1717784589865,0.6226422,160.32,160.23,26.88608543]
[1717784590061,1.1682564,160.45,160.29,120.0]
[1717784590242,1.1682564,160.45,160.3,20.0]
[1717784590575,1.1682564,160.45,160.33,120.0]
[1717784590751,1.1682564,160.45,160.3,20.0]
[1717784591245,1.1682564,160.45,160.24,120.0]
[1717784591437,1.1682564,160.45,160.31,90.0]
[1717784592059,1.1682564,160.45,160.31,97.61769654]
[1717784592260,1.1682564,160.45,160.32,7.61769654]
[1717784592444,1.1682564,160.45,160.33,20.0]
[1717784592638,1.1682564,160.45,160.37,120.0]
[1717784592834,1.1682564,160.45,160.4,120.0]
[1717784593047,1.1682564,160.45,160.41,20.0]
[1717784593248,1.1682564,160.45,160.43,120.0]
[1717784593438,0.03891246,160.47,160.44,20.0]
[1717784593639,0.03891246,160.47,160.45,120.0]
[1717784593838,0.03891246,160.47,160.39,120.0]
[1717784594061,0.03891246,160.47,160.4,27.61769654]
[1717784594235,0.03891246,160.47,160.4,7.61769654]
[1717784594438,0.03891246,160.47,160.42,120.0]
[1717784594663,0.03891246,160.47,160.44,120.0]
[1717784594967,1.1682564,160.68,160.52,120.0]
[1717784595176,1.1682564,160.68,160.54,120.0]
[1717784595339,1.1682564,160.68,160.59,90.0]
[1717784596119,1.1682564,160.68,160.53,120.0]
[1717784596385,1.1682564,160.68,160.51,6.93158543]
[1717784596536,1.1682564,160.68,160.52,0.85468078]
[1717784596755,1.1682564,160.68,160.51,6.93158543]
[1717784596756,2.19834332,160.68,160.51,6.93158543]
[1717784596979,1.1682564,160.68,160.51,6.93158543]
[1717784597224,1.1682564,160.68,160.45,7.94848743]
[1717784597383,1.1682564,160.68,160.39,2.88686672]
[1717784597384,9.9605745,160.65,160.39,2.88686672]
[1717784597583,9.9605745,160.65,160.33,10.66498596]
[1717784597584,1.1682564,160.68,160.4,120.0]
[1717784597790,21.1682564,160.68,160.43,120.0]
[1717784597967,1.03008692,160.67,160.43,120.0]
[1717784598234,21.1682564,160.68,160.61,22.2356]
[1717784598235,1.1682564,160.68,160.61,22.2356]
[1717784598493,1.1682564,160.9,160.61,22.2356]
[1717784598494,1.1682564,160.9,160.89,6.49331398]
[1717784598984,0.6682564,160.9,160.65,122.88686672]
[1717784599162,0.6682564,160.9,160.77,90.0]
[1717784599357,0.6682564,160.9,160.65,2.88686672]
[1717784599882,0.6682564,160.9,160.66,7.99702228]
[1717784600286,0.6682564,160.9,160.65,2.88686672]
[1717784600287,1.03008692,160.89,160.65,2.88686672]
[1717784600470,9.9605745,160.87,160.65,2.88686672]
[1717784600672,1.03008692,160.86,160.65,2.88686672]
[1717784601260,3.11268424,160.85,160.65,2.88686672]
[1717784602084,2.08259732,160.85,160.69,120.0]
[1717784602285,2.08259732,160.85,160.82,90.0]
[1717784602770,0.6682564,160.9,160.77,126.97773822]
[1717784603089,0.6682564,160.9,160.76,8.721994]
[1717784603386,12.04317182,160.89,160.71,6.97773822]
[1717784603555,9.9605745,160.87,160.71,6.97773822]
[1717784603756,1.03008692,160.86,160.65,2.88686672]
[1717784603961,9.9605745,160.83,160.65,2.88686672]
[1717784604262,9.9605745,160.81,160.65,2.88686672]
[1717784604478,21.03008692,160.8,160.65,2.88686672]
[1717784604680,1.03008692,160.79,160.65,2.88686672]
[1717784605020,6.02740215,160.78,160.65,2.88686672]
[1717784605201,25.6411908,160.77,160.5,120.0]
[1717784605356,21.03008692,160.77,160.56,120.0]
[1717784605688,1.03008692,160.77,160.53,120.0]
[1717784605896,1.03008692,160.77,160.62,90.0]
[1717784606211,6.02740215,160.83,160.62,90.0]
[1717784606212,5.0709206,160.81,160.62,90.0]
[1717784606488,9.9605745,160.85,160.55,120.0]
[1717784606695,6.07243408,160.81,160.53,120.0]
[1717784606982,4.84436865,160.8,160.53,120.0]
[1717784607186,1.03008692,160.79,160.57,120.0]
[1717784607365,1.03008692,160.79,160.51,120.0]
[1717784607564,1.03008692,160.79,160.53,120.0]
[1717784607767,1.03008692,160.79,160.48,126.312]
[1717784607983,3.58386505,160.78,160.48,6.312]
[1717784608281,1.03008692,160.77,160.55,6.312]
[1717784608477,1.03008692,160.77,160.56,120.0]
[1717784608671,1.03008692,160.84,160.55,126.312]
[1717784608870,1.03008692,160.84,160.55,6.312]
[1717784609381,6.33310749,160.83,160.53,6.312]
[1717784609562,1.03008692,160.82,160.53,126.312]
[1717784609762,1.03008692,160.82,160.54,120.0]
[1717784610066,1.03008692,160.82,160.53,126.312]
[1717784610287,1.03008692,160.82,160.41,25.5442]
[1717784610288,1.03008692,160.82,160.55,120.0]
[1717784610463,1.03008692,160.82,160.57,120.0]
[1717784610661,6.44628404,160.82,160.59,120.0]
[1717784610868,1.03008692,160.82,160.6,20.0]
[1717784611088,6.44628404,160.87,160.55,120.0]
[1717784611285,1.03008692,160.87,160.56,20.0]
[1717784611480,1.03008692,160.87,160.58,120.0]
[1717784611670,1.03008692,160.87,160.59,20.0]
[1717784612087,120.0,160.85,160.53,6.312]
[1717784612392,9.9605745,160.67,160.46,6.4997327]
[1717784612696,34.03,160.74,160.46,6.4997327]
[1717784612697,34.03,160.63,160.46,6.4997327]
[1717784612876,13.73601855,160.62,160.46,6.4997327]
[1717784613375,20.0,160.66,160.48,120.0]
[1717784613570,6.94764724,160.73,160.52,120.0]
[1717784613883,6.94764724,160.68,160.5,120.0]
[1717784614093,6.94764724,160.68,160.46,6.4997327]
[1717784614094,1.03008692,160.67,160.46,126.4997327]
[1717784614417,15.15985388,160.66,160.46,6.4997327]
[1717784614567,1.03008692,160.65,160.46,6.4997327]
[1717784614773,15.46192549,160.64,160.46,6.4997327]
[1717784614962,22.40957273,160.64,160.46,6.4997327]
[1717784615167,6.94764724,160.63,160.46,6.4997327]
[1717784615378,6.88226742,160.62,160.46,6.4997327]
[1717784615683,22.40788944,160.62,160.46,6.4997327]
[1717784615995,26.94764724,160.61,160.46,6.4997327]
[1717784616194,1.03008692,160.6,160.46,6.4997327]
[1717784616506,6.94764724,160.59,160.46,6.4997327]
[1717784616700,15.13692549,160.58,160.38,6.312]
[1717784617017,15.13692549,160.58,160.34,0.5]
[1717784617018,7.97773416,160.57,160.34,0.5]
[1717784617222,20.0,160.56,160.34,0.5]
[1717784617501,9.9605745,160.42,160.34,0.5]
[1717784617705,9.9605745,160.42,160.05,10.66498596]
[1717784617706,16.44630845,160.41,160.31,0.1327098]
[1717784617877,43.9905745,160.33,160.08,1.1690191]
[1717784618190,36.44630845,160.41,160.08,11.1690191]
[1717784618191,36.2927719,160.32,160.08,11.1690191]
[1717784618405,28.13417773,160.32,160.14,10.0]
[1717784618629,20.0,160.32,160.14,10.0]
[1717784618778,1606.7,160.87,160.14,130.0]
[1717784618779,6.7134714,160.38,160.14,130.0]
[1717784618983,20.87655037,160.48,160.14,130.0]
[1717784618984,7.59002177,160.47,160.21,130.0]
[1717784619200,7.59002177,160.47,160.14,6.6258]
[1717784619201,0.87655037,160.47,160.24,10.0]
[1717784619421,7.11397193,160.47,160.21,130.0]
[1717784619573,13.32934111,160.47,160.21,130.0]
[1717784619773,6.21536918,160.46,160.26,10.0]
[1717784619994,0.87655037,160.45,160.22,10.0]
[1717784620303,6.23742156,160.44,160.22,10.0]
[1717784620511,0.87655037,160.43,160.22,10.0]
[1717784620674,0.87655037,160.43,160.2,120.0]
[1717784620675,0.87655037,160.43,160.2,10.0]
[1717784620872,7.70879417,160.42,160.17,10.0]
[1717784621074,0.87655037,160.41,160.2,10.0]
[1717784621300,7.70879417,160.41,160.2,10.0]
[1717784621500,0.87655037,160.4,160.21,90.0]
[1717784621812,0.87655037,160.55,160.36,10.0]
[1717784621973,0.87655037,160.55,160.31,10.0]
[1717784622173,5.5491149,160.54,160.31,10.0]
[1717784622402,0.87655037,160.53,160.31,10.0]
[1717784622612,5.15185022,160.52,160.31,10.0]
[1717784622775,0.87655037,160.51,160.2,120.0]
[1717784622981,0.87655037,160.51,160.21,30.0]
[1717784622982,5.5491149,160.5,160.21,30.0]
[1717784623297,0.87655037,160.49,160.21,30.0]
[1717784623506,0.87655037,160.49,160.21,10.0]
[1717784623675,5.15185022,160.48,160.21,10.0]
[1717784623907,54.03,160.47,160.15,10.0]
[1717784624082,6.42566527,160.46,160.15,130.0]
[1717784624403,120.0,160.44,160.15,10.0]
[1717784624700,26.74669733,160.45,160.15,10.0]
[1717784624701,26.74669733,160.43,160.15,10.0]
[1717784624890,0.87655037,160.42,160.15,10.0]
[1717784625108,6.74669733,160.42,160.16,90.0]
[1717784625442,0.87655037,160.42,160.22,10.0]
[1717784625697,0.87655037,160.42,160.16,90.0]
[1717784625903,0.87655037,160.48,160.16,90.0]
[1717784626132,0.87655037,160.48,160.15,10.0]
[1717784626403,5.27467045,160.47,160.15,10.0]
[1717784626606,0.87655037,160.46,160.15,130.0]
[1717784626799,0.87655037,160.46,160.21,10.0]
[1717784627306,5.27467045,160.45,160.21,10.0]
[1717784627477,0.87655037,160.44,160.21,10.0]
[1717784627679,0.87655037,160.44,160.22,30.0]
[1717784627881,154.03,160.57,160.22,30.0]
[1717784627882,0.87655037,160.56,160.26,130.0]
[1717784628096,0.87655037,160.56,160.27,20.0]
[1717784628294,0.87655037,160.56,160.29,10.0]
[1717784628497,34.03,160.57,160.24,5.45639747]
[1717784628699,120.0,160.48,160.15,10.0]
[1717784628877,37.66776944,160.47,160.15,10.0]
[1717784629084,7.64889436,160.47,160.22,90.0]
[1717784629282,7.64889436,160.47,160.23,10.0]
[1717784629709,20.0,160.46,160.23,10.0]
[1717784629908,5.98619728,160.45,160.23,10.0]
[1717784630175,20.0,160.44,160.23,10.0]
[1717784630378,0.80170008,160.43,160.23,10.0]
[1717784631304,0.80170008,160.42,160.23,10.0]
[1717784631823,0.80170008,160.5,160.23,10.0]
[1717784633016,5.63351931,160.49,160.23,10.0]
[1717784633320,34.03,160.4,160.16,10.0]
[1717784633644,23.26553382,160.39,160.16,10.0]
[1717784633797,25.72936756,160.39,160.16,10.0]
[1717784634516,4.92766748,160.38,160.18,10.0]
[1717784634722,0.80170008,160.37,160.18,10.0]
[1717784634907,6.89143986,160.36,160.18,10.0]
[1717784635111,20.80170008,160.35,160.16,10.0]
[1717784635299,20.80170008,160.35,160.14,10.0]
[1717784635300,34.03,160.32,160.14,10.0]
[1717784635619,27.69313994,160.31,160.16,10.0]
[1717784635816,7.69313994,160.31,160.16,10.0]
[1717784636020,20.0,160.3,160.16,10.0]
[1717784636204,0.80170008,160.29,160.16,10.0]
[1717784636407,6.89312314,160.29,160.14,10.0]
[1717784636724,20.0,160.28,160.09,16.312]
[1717784636964,2.46383374,160.27,160.09,16.312]
[1717784637117,20.0,160.28,160.09,16.312]
[1717784637415,0.80170008,160.38,160.14,10.0]
[1717784638710,2.46383374,160.37,160.14,10.0]
[1717784638901,0.80170008,160.36,160.14,10.0]
[1717784639424,34.03,160.47,160.19,90.0]
[1717784639599,0.80170008,160.46,160.19,90.0]
[1717784639795,0.80170008,160.46,160.18,10.0]
[1717784640209,120.0,160.44,160.16,10.0]
[1717784640419,34.03,160.39,160.18,10.0]
[1717784640628,34.03,160.39,160.13,6.312]
[1717784640629,0.80170008,160.38,160.13,16.312]
[1717784640813,4.4292894,160.37,160.13,16.312]
[1717784641011,34.03,160.39,160.13,16.312]
[1717784641012,0.80170008,160.36,160.13,16.312]
[1717784641215,0.80170008,160.36,160.15,10.0]
[1717784641402,0.80170008,160.36,160.19,10.0]
[1717784641739,0.80170008,160.36,160.18,10.0]
[1717784642109,0.80170008,160.36,160.2,10.0]
[1717784642421,34.03,160.39,160.08,1.1690191]
[1717784642422,0.80170008,160.35,160.08,1.1690191]
[1717784642808,0.80170008,160.35,160.09,90.0]
[1717784643124,0.80170008,160.35,160.15,10.0]
[1717784643430,0.80170008,160.35,160.16,6.312]
[1717784644024,0.80170008,160.38,160.19,126.312]
[1717784644336,34.03,160.48,160.19,6.312]
[1717784644636,120.0,160.52,160.19,6.312]
[1717784644637,34.03,160.39,160.2,6.312]
[1717784644801,0.80170008,160.38,160.2,6.312]
[1717784644999,7.31204544,160.38,160.2,6.312]
[1717784645206,34.03,160.39,160.08,1.1690191]
[1717784645425,34.03,160.31,160.08,1.1690191]
[1717784645641,9.2415137,160.3,160.08,1.1690191]
[1717784645819,0.80170008,160.29,160.08,1.1690191]
[1717784646032,11.9530864,160.28,160.08,1.1690191]
[1717784646343,0.80170008,160.27,160.08,91.1690191]
[1717784646639,11.66920292,160.26,160.08,91.1690191]
[1717784646861,34.03,160.31,160.08,91.1690191]
[1717784646862,20.0,160.25,160.09,120.0]
[1717784647150,34.03,160.39,160.16,120.0]
[1717784647314,0.80170008,160.38,160.12,145.3327]
[1717784647510,0.80170008,160.38,160.16,10.0]
[1717784647831,34.03,160.39,160.12,16.4327]
[1717784648144,0.80170008,160.38,160.14,130.0]
[1717784648322,0.80170008,160.38,160.15,20.0]
[1717784648520,34.83170008,160.38,160.14,10.0]
[1717784649515,34.83170008,160.38,160.16,120.0]
[1717784649717,0.80170008,160.38,160.16,10.0]
[1717784649938,0.80170008,160.41,160.27,90.0]
[1717784650139,0.80170008,160.41,160.13,10.0]
[1717784650345,0.80170008,160.41,160.14,20.0]
[1717784650641,0.80170008,160.41,160.15,120.0]
[1717784650890,0.80170008,160.41,160.17,6.312]
[1717784651019,0.80170008,160.41,160.14,20.0]
[1717784651020,0.80170008,160.41,160.18,26.312]
[1717784651222,34.03,160.38,160.18,6.312]
[1717784651529,0.80170008,160.37,160.18,6.312]
[1717784651949,0.80170008,160.37,160.16,6.312]
[1717784652127,0.80170008,160.45,160.18,6.312]
[1717784652443,34.03,160.38,160.18,6.312]
[1717784652651,0.80170008,160.37,160.18,6.312]
[1717784653143,0.80170008,160.37,160.19,90.0]
[1717784653330,0.80170008,160.37,160.17,6.312]
[1717784653652,20.80170008,160.37,160.17,6.312]
[1717784654165,34.03,160.46,160.17,6.312]
[1717784654166,0.80170008,160.36,160.17,6.312]
[1717784654651,0.80170008,160.38,160.18,126.312]
[1717784654829,0.80170008,160.4,160.2,120.0]
[1717784655033,0.80170008,160.46,160.18,16.312]
[1717784655238,0.80170008,160.46,160.24,120.0]
[1717784655542,0.80170008,160.54,160.23,126.2611]
[1717784655716,0.80170008,160.54,160.31,10.0]
[1717784656225,0.80170008,160.54,160.33,90.0]
[1717784656434,0.80170008,160.54,160.24,20.0]
[1717784656435,34.03,160.47,160.24,20.0]
[1717784656629,0.80170008,160.46,160.24,20.0]
[1717784656847,0.80170008,160.46,160.22,6.312]
[1717784657062,0.80170008,160.46,160.18,10.0]
[1717784657272,4.89916707,160.45,160.18,10.0]
[1717784657547,0.80170008,160.44,160.18,16.312]
[1717784658054,120.0,160.43,160.18,16.312]
[1717784658363,34.03,160.39,160.18,6.312]
[1717784658532,0.80170008,160.38,160.18,6.312]
[1717784658844,25.70255044,160.38,160.17,10.0]
[1717784659023,7.65692961,160.37,160.17,10.0]
[1717784659341,26.47715656,160.36,160.17,10.0]
[1717784659531,8.45862969,160.35,160.12,10.0]
[1717784659723,0.80170008,160.35,160.12,10.0]
[1717784660236,0.80170008,160.38,160.14,10.0]
[1717784660435,0.80170008,160.38,160.17,120.0]
[1717784660634,0.80170008,160.38,160.17,10.0]
[1717784660935,0.80170008,160.38,160.2,20.0]
[1717784661143,34.03,160.47,160.23,10.0]
[1717784661144,7.65692961,160.42,160.23,10.0]
[1717784661355,0.80170008,160.41,160.23,10.0]
[1717784661646,0.80170008,160.46,160.23,10.0]
[1717784661947,0.80170008,160.46,160.24,20.0]
[1717784662132,0.80170008,160.46,160.25,136.1482]
[1717784662335,0.80170008,160.48,160.3,10.0]
[1717784662541,0.80170008,160.54,160.31,230.0]
[1717784662746,0.80170008,160.54,160.35,10.0]
[1717784663253,34.03,160.65,160.36,20.0]
[1717784663254,0.80170008,160.64,160.36,20.0]
[1717784663423,0.80170008,160.64,160.37,120.0]
[1717784663624,0.80170008,160.64,160.22,10.0]
[1717784663826,0.80170008,160.64,160.14,120.0]
[1717784663827,34.03,160.49,160.19,126.50164445]
[1717784664024,15.60402255,160.63,160.25,120.0]
[1717784664025,34.03,160.58,160.25,120.0]